bitfinex/quotes_BTCUSD_20220201
["timestamp","ask_amount","ask_price","bid_price","bid_amount"]
[1643692707436,0.29355351,38571.0,38562.0,0.22640981]
[1643692707635,0.29355351,38571.0,38563.0,0.34913]
[1643692707838,0.29355351,38571.0,38564.0,0.20705672]
[1643692708036,0.08523672,38565.0,38564.0,0.20705672]
[1643692708237,0.08523672,38565.0,38564.0,0.34913]
[1643692708446,0.08523672,38565.0,38563.0,0.34913]
[1643692708838,0.08523672,38565.0,38564.0,0.19154932]
[1643692709038,0.08523672,38565.0,38564.0,0.5419231]
[1643692709239,0.08523672,38565.0,38564.0,0.34913]
[1643692709479,0.08523672,38565.0,38563.0,0.34913]
[1643692709679,0.08523672,38565.0,38564.0,0.1949534]
[1643692709879,0.08523672,38565.0,38564.0,0.5440834]
[1643692710080,0.08523672,38565.0,38564.0,0.34913]
[1643692710282,0.08523672,38565.0,38563.0,0.34913]
[1643692711084,0.08023672,38565.0,38564.0,0.19166093]
[1643692711281,0.08023672,38565.0,38564.0,0.34913]
[1643692711481,0.08023672,38565.0,38563.0,0.34913]
[1643692711684,0.31243237,38566.0,38563.0,0.34913]
[1643692711881,0.31076065,38566.0,38563.0,0.34913]
[1643692712082,0.31243237,38566.0,38563.0,0.34913]
[1643692712884,0.31076065,38566.0,38563.0,0.34913]
[1643692713085,0.40872206,38566.0,38560.0,0.19775655]
[1643692714136,0.40720298,38566.0,38560.0,0.19775655]
[1643692714336,0.00142088,38565.0,38560.0,0.19775655]
[1643692715338,0.40720298,38566.0,38560.0,0.19775655]
[1643692715536,0.00142089,38564.0,38560.0,0.19775655]
[1643692715738,0.00142089,38564.0,38561.0,0.34913]
[1643692716538,0.40720298,38566.0,38561.0,0.34913]
[1643692716738,0.00157294,38564.0,38560.0,0.19775655]
[1643692716980,0.00157294,38564.0,38561.0,0.34913]
[1643692717781,0.40720298,38566.0,38561.0,0.34913]
[1643692717982,0.00166846,38564.0,38560.0,0.19775655]
[1643692718181,0.00166846,38564.0,38561.0,0.34913]
[1643692718581,0.00166846,38564.0,38562.0,0.20551189]
[1643692718782,0.05857283,38570.0,38563.0,0.34913]
[1643692718986,0.29355351,38571.0,38562.0,0.50879706]
[1643692719482,0.00166846,38564.0,38562.0,0.30328517]
[1643692719684,0.00166846,38564.0,38563.0,0.62291099]
[1643692720283,0.00166846,38564.0,38563.0,0.81499381]
[1643692720484,0.00166844,38565.0,38563.0,0.81499381]
[1643692720736,0.00166844,38565.0,38563.0,0.81436731]
[1643692720931,0.09941984,38565.0,38563.0,0.62291099]
[1643692721130,0.09941984,38565.0,38563.0,0.34913]
[1643692721335,0.0977514,38565.0,38560.0,0.064826]
[1643692721930,0.0977514,38565.0,38561.0,0.19245098]
[1643692722732,0.09925665,38565.0,38561.0,0.19245098]
[1643692722933,0.09925665,38565.0,38561.0,0.19238513]
[1643692723133,0.09925665,38565.0,38560.0,0.22071915]
[1643692723333,0.39255548,38565.0,38560.0,0.22071915]
[1643692723733,0.39255548,38565.0,38561.0,0.19490379]
[1643692723734,0.39105023,38565.0,38561.0,0.19490379]
[1643692723934,0.0013625,38564.0,38560.0,0.22071915]
[1643692724780,0.0013625,38564.0,38561.0,0.19478406]
[1643692724981,0.0977514,38565.0,38561.0,0.19478406]
[1643692725183,0.00152605,38564.0,38560.0,0.22071915]
[1643692725384,0.00152605,38564.0,38561.0,0.19159889]
[1643692725984,0.0977514,38565.0,38561.0,0.19159889]
[1643692726182,0.27072373,38569.0,38561.0,0.19159889]
[1643692726381,0.00152604,38564.0,38561.0,0.19159889]
[1643692727187,0.08218413,38568.0,38561.0,0.19159889]
[1643692727588,0.00152604,38564.0,38561.0,0.19159889]
[1643692727787,0.00152604,38564.0,38562.0,0.34913]
[1643692727987,0.00152604,38564.0,38563.0,0.19942437]
[1643692728239,0.00152604,38564.0,38563.0,0.54855437]
[1643692728532,0.35503245,38568.0,38563.0,0.34913]
[1643692728731,0.35503245,38568.0,38561.0,0.20565492]
[1643692728732,0.00153586,38565.0,38561.0,0.2035791]
[1643692729734,0.0519,38566.0,38560.0,0.22071915]
[1643692729935,0.00153587,38565.0,38560.0,0.22071915]
[1643692730335,0.00153587,38565.0,38561.0,0.19431612]
[1643692730935,0.0519,38566.0,38561.0,0.19431612]
[1643692731135,0.00153587,38565.0,38561.0,0.19431612]
[1643692731995,0.0519,38566.0,38560.0,0.22071915]
[1643692732392,0.00153493,38565.0,38561.0,0.19283209]
[1643692733194,0.35503245,38568.0,38561.0,0.19283209]
[1643692733394,0.35503245,38568.0,38560.0,0.22071915]
[1643692733595,0.00153493,38565.0,38561.0,0.19194419]
[1643692733795,0.00153493,38565.0,38560.0,0.22071915]
[1643692734395,0.35503245,38568.0,38560.0,0.22071915]
[1643692734796,0.00153494,38564.0,38560.0,0.22071915]
[1643692735597,0.35503245,38568.0,38560.0,0.22071915]
[1643692735835,0.00153506,38564.0,38560.0,0.22071915]
[1643692736036,0.00153506,38564.0,38560.0,0.28554715]
[1643692736237,0.00153506,38564.0,38561.0,0.34913]
[1643692736837,0.0519,38575.0,38561.0,0.54781629]
[1643692737038,0.0519,38575.0,38561.0,0.19868629]
[1643692737039,0.00153505,38564.0,38561.0,0.19868629]
[1643692737244,0.00153505,38564.0,38563.0,0.129644]
[1643692737438,0.00153505,38564.0,38563.0,0.9132896]
[1643692737638,0.00153505,38564.0,38563.0,0.71936876]
[1643692738039,0.09591337,38566.0,38563.0,0.65454776]
[1643692738239,0.09591337,38566.0,38563.0,0.30541776]
[1643692738439,0.00153503,38565.0,38563.0,0.30541776]
[1643692739239,0.09591337,38566.0,38563.0,0.30541776]
[1643692739484,0.09744838,38566.0,38563.0,0.30541776]
[1643692739688,0.00153501,38566.0,38565.0,0.32154811]
[1643692739894,0.00153501,38566.0,38565.0,0.97907243]
[1643692740085,0.00153501,38566.0,38565.0,0.76066811]
[1643692740885,0.5917339,38574.0,38565.0,0.76066811]
[1643692741086,0.00153498,38567.0,38566.0,0.064817]
[1643692741885,0.00153496,38568.0,38566.0,0.26318108]
[1643692742085,0.00153496,38568.0,38567.0,0.60679944]
[1643692742287,0.00153496,38568.0,38567.0,0.41394496]
[1643692742984,0.59787281,38574.0,38567.0,0.41394496]
[1643692742985,0.5917339,38574.0,38567.0,0.41394496]
[1643692743250,0.0897885,38571.0,38569.0,0.26752013]
[1643692743643,0.08972615,38571.0,38569.0,0.26752013]
[1643692744143,0.01912331,38575.0,38569.0,0.26752013]
[1643692744343,0.00136388,38572.0,38569.0,0.26752013]
[1643692744944,0.00136388,38572.0,38569.0,0.46044855]
[1643692745344,0.08457629,38573.0,38569.0,0.46044855]
[1643692745543,0.00136388,38572.0,38569.0,0.26752013]
[1643692746444,0.08457629,38573.0,38569.0,0.26752013]
[1643692746844,0.00167161,38572.0,38569.0,0.26752013]
[1643692747588,0.00167161,38572.0,38568.0,0.064815]
[1643692747791,0.08457629,38573.0,38568.0,0.064815]
[1643692747987,0.00167161,38572.0,38568.0,0.064815]
[1643692748188,0.00167161,38572.0,38568.0,0.25888584]
[1643692748888,0.08457629,38573.0,38568.0,0.064815]
[1643692749088,0.08457629,38573.0,38568.0,0.25848968]
[1643692749288,0.21862343,38576.0,38568.0,0.25848968]
[1643692750491,0.00167158,38574.0,38568.0,0.25848968]
[1643692750938,0.00167158,38574.0,38568.0,0.064815]
[1643692751543,0.00167158,38574.0,38567.0,0.29013195]
[1643692751739,0.0016716,38573.0,38567.0,0.29013195]
[1643692752442,0.0016716,38573.0,38566.0,0.1148]
[1643692752845,0.0016716,38573.0,38559.0,0.493243]
[1643692753040,0.0016716,38573.0,38559.0,0.62894627]
[1643692753241,0.00167162,38572.0,38559.0,0.89041204]
[1643692753439,0.07580827,38566.0,38561.0,0.064825]
[1643692753639,0.07580827,38566.0,38561.0,0.25736205]
[1643692753841,0.25346589,38568.0,38561.0,0.25736205]
[1643692754042,0.25346589,38568.0,38561.0,0.32218305]
[1643692754240,0.25346589,38568.0,38561.0,0.25735805]
[1643692755090,0.25346589,38568.0,38562.0,0.064821]
[1643692755292,0.25346589,38568.0,38562.0,0.1296414]
[1643692755495,0.25346589,38568.0,38563.0,0.26090456]
[1643692755892,0.25346589,38568.0,38563.0,0.064821]
[1643692756091,0.27334398,38568.0,38563.0,0.064821]
[1643692756291,0.25513759,38568.0,38563.0,0.064821]
[1643692756994,0.00134863,38566.0,38563.0,0.064821]
[1643692757997,0.00134862,38567.0,38563.0,0.064821]
[1643692758638,0.00134862,38567.0,38563.0,0.129642]
[1643692758838,0.0013871,38567.0,38563.0,0.129642]
[1643692759838,0.39182343,38576.0,38565.0,0.129637]
[1643692760039,0.00141322,38567.0,38565.0,0.129637]
[1643692760238,0.00141322,38567.0,38566.0,0.34913]
[1643692761038,0.24728738,38572.0,38566.0,0.34913]
[1643692761039,0.34943434,38572.0,38566.0,0.34913]
[1643692761241,0.00141319,38568.0,38567.0,0.064817]
[1643692762090,0.34943434,38572.0,38567.0,0.064817]
[1643692762492,0.00141318,38569.0,38567.0,0.064817]
[1643692762693,0.00141318,38569.0,38567.0,0.12963304]
[1643692763296,0.34943434,38572.0,38567.0,0.12963304]
[1643692763694,0.0015457,38570.0,38567.0,0.12963304]
[1643692763893,0.0015457,38570.0,38568.0,0.34913]
[1643692764092,0.00144835,38570.0,38568.0,0.34913]
[1643692764492,0.10214696,38572.0,38568.0,0.34913]
[1643692764694,0.10214696,38572.0,38567.0,0.12963304]
[1643692765295,0.41867187,38576.0,38571.0,0.30207066]
[1643692765594,0.29737187,38576.0,38571.0,0.30207066]
[1643692765840,0.002,38578.0,38571.0,0.30207066]
[1643692766241,0.24919478,38577.0,38571.0,0.30207066]
[1643692766637,0.33094188,38577.0,38571.0,0.30207066]
[1643692767839,0.24730656,38576.0,38571.0,0.30207066]
[1643692768442,0.33094188,38577.0,38571.0,0.30207066]
[1643692768738,0.00166976,38576.0,38571.0,0.30207066]
[1643692769339,0.33094188,38577.0,38571.0,0.30207066]
[1643692769785,0.00166977,38575.0,38571.0,0.30207066]
[1643692770587,0.33094188,38577.0,38571.0,0.30207066]
[1643692770989,0.00166978,38575.0,38571.0,0.30207066]
[1643692771987,0.00167168,38575.0,38571.0,0.30207066]
[1643692773088,0.38094188,38577.0,38571.0,0.30207066]
[1643692773340,0.00152111,38575.0,38571.0,0.30207066]
[1643692774140,0.33094188,38577.0,38571.0,0.30207066]
[1643692774339,0.00152111,38575.0,38571.0,0.30207066]
[1643692775441,0.33094188,38577.0,38571.0,0.30207066]
[1643692775739,0.00152111,38575.0,38571.0,0.30207066]
[1643692776640,0.33094188,38577.0,38571.0,0.30207066]
[1643692776840,0.00152111,38575.0,38571.0,0.30207066]
[1643692777291,0.00152111,38575.0,38567.0,0.12963239]
[1643692777891,0.33094188,38577.0,38567.0,0.12963239]
[1643692778091,0.00153785,38573.0,38567.0,0.12963239]
[1643692778495,0.27446663,38571.0,38567.0,0.12963239]
[1643692778897,0.08874716,38570.0,38566.0,0.19244756]
[1643692779094,0.08874716,38570.0,38564.0,0.63668411]
[1643692779291,0.08874716,38570.0,38565.0,0.34913]
[1643692779492,0.08874716,38570.0,38565.0,0.413949]
[1643692779993,0.08874716,38570.0,38566.0,0.064818]
[1643692780594,0.00153792,38569.0,38565.0,0.064819]
[1643692781443,0.08874716,38570.0,38565.0,0.064819]
[1643692781641,0.00153721,38569.0,38565.0,0.064819]
[1643692783239,0.00153721,38569.0,38566.0,0.06040989]
[1643692783842,0.08874716,38570.0,38566.0,0.06040989]
[1643692784045,0.0015372,38569.0,38566.0,0.06040989]
[1643692784988,0.08874716,38570.0,38566.0,0.06040989]
[1643692785391,0.00167179,38569.0,38566.0,0.12522822]
[1643692786290,0.01826773,38574.0,38566.0,0.12522822]
[1643692786490,0.00167179,38569.0,38566.0,0.12522822]
[1643692787491,0.50243327,38575.0,38566.0,0.12522822]
[1643692787692,0.00167179,38569.0,38566.0,0.12522822]
[1643692787992,0.00167179,38569.0,38567.0,0.27083852]
[1643692788744,0.02003639,38574.0,38567.0,0.27083852]
[1643692789046,0.00156269,38570.0,38567.0,0.27083852]
[1643692789347,0.08619268,38570.0,38568.0,0.064815]
[1643692789544,0.08619268,38570.0,38566.0,0.06481833]
[1643692789943,0.08462999,38570.0,38566.0,0.06481833]
[1643692790745,0.26240378,38569.0,38566.0,0.06481833]
[1643692791244,0.26240378,38569.0,38566.0,0.12963633]
[1643692792490,0.26407557,38569.0,38566.0,0.12963633]
[1643692793589,0.26240378,38569.0,38566.0,0.12963633]
[1643692793791,0.26407557,38569.0,38566.0,0.12963633]
[1643692794590,0.26240378,38569.0,38566.0,0.19445233]
[1643692794990,0.00167179,38569.0,38566.0,0.19445233]
[1643692795948,0.08462999,38570.0,38566.0,0.19445233]
[1643692796145,0.00167179,38569.0,38566.0,0.19445233]
[1643692797053,0.08462999,38570.0,38566.0,0.19445233]
[1643692797348,0.00167179,38569.0,38566.0,0.19445233]
[1643692798448,0.08462999,38570.0,38569.0,0.26393056]
[1643692798647,0.08462999,38570.0,38564.0,0.20476788]
[1643692798848,0.08462999,38570.0,38564.0,0.33439788]
[1643692799249,0.08462999,38570.0,38564.0,0.25925846]
[1643692799506,0.08462999,38570.0,38563.0,0.1248]
[1643692799714,0.0016718,38569.0,38558.0,0.77192871]
[1643692799908,0.22225253,38562.0,38558.0,0.77192871]
[1643692800107,0.32415123,38562.0,38561.0,1.16164433]
[1643692801410,0.00167181,38566.0,38561.0,1.16164433]
[1643692802009,0.1745,38571.0,38561.0,1.16164433]
[1643692802213,0.00167186,38566.0,38561.0,0.81251433]
[1643692802410,0.29798734,38563.0,38562.0,0.34913]
[1643692802609,0.37746215,38563.0,38562.0,0.34913]
[1643692804642,0.37736561,38563.0,38562.0,0.34913]
[1643692804847,0.37736561,38563.0,38561.0,0.81251433]
[1643692805045,0.3019,38562.0,38561.0,0.81251433]
[1643692806647,0.0519,38562.0,38561.0,0.81251433]
[1643692807092,0.07947481,38563.0,38561.0,0.81251433]
[1643692807291,0.07947481,38563.0,38562.0,0.34913]
[1643692809692,0.00152113,38566.0,38562.0,0.34913]
[1643692809894,0.00152113,38566.0,38561.0,1.16813949]
[1643692810099,0.00152113,38566.0,38563.0,0.064826]
[1643692810749,0.28013052,38570.0,38563.0,0.064826]
[1643692810945,0.09276063,38565.0,38563.0,0.064826]
[1643692811547,0.09276063,38565.0,38563.0,0.12964806]
[1643692812343,0.09276063,38565.0,38563.0,0.064826]
[1643692813345,0.09276063,38565.0,38562.0,0.064824]
[1643692813544,0.09276063,38565.0,38561.0,1.16813781]
[1643692813746,0.09276063,38565.0,38561.0,0.81251433]
[1643692816303,0.09276063,38565.0,38561.0,0.87734233]
[1643692816705,0.30391205,38564.0,38561.0,0.87734233]
[1643692817706,0.30391205,38564.0,38561.0,0.81251433]
[1643692818345,0.09276063,38565.0,38561.0,0.81251433]
[1643692819345,0.39008626,38565.0,38561.0,0.87734433]
[1643692824091,0.09276063,38565.0,38561.0,0.87734433]
[1643692825306,0.09266916,38565.0,38561.0,0.87734433]
[1643692827361,0.09266916,38565.0,38561.0,0.81251433]
[1643692827764,0.14266916,38565.0,38561.0,0.81251433]
[1643692828365,0.09266916,38565.0,38561.0,0.81251433]
[1643692830094,0.09266916,38565.0,38560.0,0.064831]
[1643692830296,0.09266916,38565.0,38560.0,0.12966146]
[1643692830495,0.30919095,38562.0,38560.0,0.12966146]
[1643692831097,0.30919095,38562.0,38560.0,0.32557466]
[1643692831295,0.30919095,38562.0,38560.0,0.12966146]
[1643692831794,0.30919095,38562.0,38560.0,0.32047019]
[1643692832194,0.30919095,38562.0,38560.0,0.32097417]
[1643692832596,0.30919095,38562.0,38560.0,0.12966146]
[1643692832797,0.30919095,38562.0,38560.0,0.32234461]
[1643692832999,0.30919095,38562.0,38560.0,0.12966146]
[1643692833848,0.09266916,38565.0,38560.0,0.12966146]
[1643692835047,0.34568784,38565.0,38560.0,0.12966146]
[1643692837693,0.34568784,38565.0,38560.0,0.32149154]
[1643692839697,0.34568784,38565.0,38560.0,0.12966146]
[1643692839997,0.34568784,38565.0,38558.0,0.26315109]
[1643692840196,0.08996281,38559.0,38558.0,0.26315109]
[1643692840399,0.08996281,38559.0,38558.0,0.61228109]
[1643692840844,0.25301868,38565.0,38558.0,0.61228109]
[1643692841049,0.25301868,38565.0,38558.0,0.26315109]
[1643692842044,0.25301868,38565.0,38558.0,0.32798309]
[1643692842244,0.25301868,38565.0,38560.0,0.064829]
[1643692842445,0.08766672,38564.0,38560.0,0.064829]
[1643692843945,0.08766672,38564.0,38560.0,0.12965724]
[1643692844146,0.08766672,38564.0,38560.0,0.32261352]
[1643692844347,0.08766672,38564.0,38560.0,0.38743952]
[1643692844596,0.08766672,38564.0,38560.0,0.19448324]
[1643692845797,0.08766672,38564.0,38560.0,0.38561296]
[1643692845997,0.08766672,38564.0,38562.0,0.129648]
[1643692846200,0.00153216,38566.0,38562.0,0.06482359]
[1643692846596,0.1,38572.0,38562.0,0.06482359]
[1643692846796,0.00153219,38566.0,38563.0,0.27428503]
[1643692847195,0.08912396,38565.0,38563.0,0.27428503]
[1643692847396,0.08912396,38565.0,38563.0,0.33910703]
[1643692848098,0.08912396,38565.0,38563.0,0.40392903]
[1643692848351,0.0015322,38566.0,38563.0,0.40392903]
[1643692848552,0.0015322,38566.0,38564.0,0.2563163]
[1643692848756,0.0015322,38566.0,38565.0,0.6055356]
[1643692848951,0.0519,38576.0,38565.0,0.6055356]
[1643692849154,0.0519,38576.0,38565.0,0.064819]
[1643692849351,0.00153218,38567.0,38565.0,0.064819]
[1643692849650,0.09366353,38567.0,38565.0,0.064819]
[1643692849849,0.0935661,38567.0,38565.0,0.064819]
[1643692850252,0.09213135,38567.0,38565.0,0.064819]
[1643692850453,0.09213135,38567.0,38565.0,0.12963992]
[1643692851051,0.29918063,38572.0,38565.0,0.12963992]
[1643692851453,0.29918063,38572.0,38565.0,0.19445992]
[1643692851652,0.29918063,38572.0,38567.0,0.06481993]
[1643692851854,0.34913,38571.0,38567.0,0.06481993]
[1643692852297,0.29918063,38572.0,38567.0,0.06481993]
[1643692853801,0.29918063,38572.0,38567.0,0.12963893]
[1643692854200,0.00167187,38571.0,38567.0,0.12963893]
[1643692855002,0.29918063,38572.0,38567.0,0.12963893]
[1643692855202,0.00167188,38571.0,38567.0,0.12963893]
[1643692856350,0.39060391,38572.0,38567.0,0.12963893]
[1643692856644,0.00167188,38571.0,38567.0,0.12963893]
[1643692857444,0.09142328,38572.0,38567.0,0.12963893]
[1643692857744,0.00167188,38571.0,38567.0,0.12963893]
[1643692858245,0.00167188,38571.0,38567.0,0.06481993]
[1643692858644,0.09142328,38572.0,38567.0,0.06481993]
[1643692859049,0.00161472,38571.0,38567.0,0.06481993]
[1643692859499,0.25617665,38570.0,38567.0,0.06481993]
[1643692861104,0.09142328,38572.0,38567.0,0.06481993]
[1643692861303,0.00161473,38571.0,38567.0,0.06481993]
[1643692862302,0.37890768,38572.0,38567.0,0.06481993]
[1643692862503,0.00167188,38571.0,38567.0,0.06481993]
[1643692863645,0.2874844,38572.0,38567.0,0.06481993]
[1643692863845,0.00167188,38571.0,38567.0,0.06481993]
[1643692864644,0.25549345,38575.0,38567.0,0.06481993]
[1643692864844,0.25549345,38575.0,38567.0,0.26068187]
[1643692864845,0.35284513,38575.0,38567.0,0.26068187]
[1643692865045,0.00167188,38571.0,38567.0,0.06481993]
[1643692865245,0.00167188,38571.0,38567.0,0.260411]
[1643692865444,0.00167188,38571.0,38567.0,0.06481993]
[1643692865644,0.00167188,38571.0,38569.0,0.25460682]
[1643692865848,0.05,38575.0,38570.0,0.19346812]
[1643692866046,0.002,38577.0,38570.0,0.21840432]
[1643692866245,0.00167188,38571.0,38570.0,0.21840432]
[1643692866444,0.00167188,38571.0,38570.0,0.34913]
[1643692866847,0.00167188,38571.0,38569.0,0.31942365]
[1643692867095,0.002,38577.0,38569.0,0.31942365]
[1643692867295,0.08405265,38577.0,38571.0,0.06481427]
[1643692867496,0.00167185,38572.0,38571.0,0.06481427]
[1643692868097,0.00167185,38572.0,38571.0,0.25766972]
[1643692868299,0.3718354,38577.0,38571.0,0.25766972]
[1643692868497,0.43361743,38577.0,38571.0,0.25766972]
[1643692868699,0.00167183,38573.0,38571.0,0.25766972]
[1643692868898,0.00167183,38573.0,38571.0,0.06481427]
[1643692869503,0.43361743,38577.0,38571.0,0.06481427]
[1643692869699,0.00167182,38574.0,38571.0,0.06481427]
[1643692870100,0.00167182,38574.0,38573.0,0.31154794]
[1643692870749,0.35156478,38577.0,38573.0,0.31154794]
[1643692870944,0.00167179,38575.0,38573.0,0.31154794]
[1643692871545,0.00167179,38575.0,38570.0,0.064815]
[1643692871746,0.00167179,38575.0,38574.0,0.06481481]
[1643692871945,0.32978275,38577.0,38574.0,0.06481481]
[1643692872347,0.34913,38576.0,38574.0,0.06481481]
[1643692872748,0.40931996,38577.0,38574.0,0.06481481]
[1643692873550,0.34913,38576.0,38572.0,0.06481733]
[1643692873749,0.20940659,38575.0,38572.0,0.06481733]
[1643692874150,0.34913,38574.0,38572.0,0.06481733]
[1643692874349,0.20940659,38575.0,38572.0,0.06481733]
[1643692874797,0.21102709,38575.0,38572.0,0.06481733]
[1643692874995,0.2802518,38574.0,38572.0,0.06481733]
[1643692875797,0.20112686,38573.0,38572.0,0.06481733]
[1643692876200,0.20112686,38573.0,38566.0,0.25084138]
[1643692876401,0.20112686,38573.0,38561.0,0.548]
[1643692876598,0.31785486,38573.0,38561.0,0.69682742]
[1643692876798,0.41785486,38573.0,38561.0,0.548]
[1643692876999,0.10273234,38564.0,38561.0,0.548]
[1643692877304,0.10273234,38564.0,38562.0,0.34913]
[1643692877498,0.10273234,38564.0,38561.0,0.06482896]
[1643692880745,0.30537788,38566.0,38562.0,0.413956]
[1643692880948,0.00600254,38570.0,38562.0,0.413956]
[1643692881144,0.01917548,38567.0,38562.0,0.064826]
[1643692881347,0.01917548,38567.0,38563.0,0.34913]
[1643692881746,0.01917548,38567.0,38559.0,0.41234326]
[1643692881998,0.01917548,38567.0,38564.0,0.064821]
[1643692882296,0.01917548,38567.0,38564.0,0.129646]
[1643692882696,0.01917548,38567.0,38565.0,0.31465655]
[1643692883397,0.0015392,38571.0,38566.0,0.34913]
[1643692883597,0.0015392,38571.0,38567.0,0.06482107]
[1643692884198,0.09713306,38571.0,38567.0,0.06482107]
[1643692884399,0.09867232,38571.0,38567.0,0.06482107]
[1643692885002,0.09867232,38571.0,38567.0,0.12964007]
[1643692885400,0.09713306,38571.0,38567.0,0.12964007]
[1643692885600,0.09866366,38571.0,38567.0,0.12964007]
[1643692886546,0.09713306,38571.0,38567.0,0.12964007]
[1643692887849,0.09713306,38571.0,38567.0,0.06482107]
[1643692888051,0.20049001,38570.0,38567.0,0.06482107]
[1643692889493,0.20858131,38570.0,38567.0,0.06482107]
[1643692889895,0.09866561,38571.0,38567.0,0.06482107]
[1643692890095,0.2053169,38570.0,38567.0,0.06482107]
[1643692890496,0.09866561,38571.0,38567.0,0.06482107]
[1643692890694,0.21367034,38570.0,38567.0,0.06482107]
[1643692891995,0.09866561,38571.0,38567.0,0.06482107]
[1643692892596,0.20031154,38570.0,38567.0,0.06482107]
[1643692892799,0.09866561,38571.0,38567.0,0.06482107]
[1643692892996,0.20202041,38570.0,38567.0,0.06482107]
[1643692893455,0.09866561,38571.0,38567.0,0.06482107]
[1643692893856,0.09713306,38571.0,38567.0,0.06482107]
[1643692894155,0.09866517,38571.0,38567.0,0.06482107]
[1643692894956,0.09713306,38571.0,38567.0,0.06482107]
[1643692895157,0.09866517,38571.0,38567.0,0.06482107]
[1643692896159,0.09713306,38571.0,38567.0,0.06482107]
[1643692896561,0.09866517,38571.0,38567.0,0.06482107]
[1643692897497,0.09713306,38571.0,38567.0,0.06482107]
[1643692897697,0.09866527,38571.0,38567.0,0.06482107]
[1643692898498,0.09713306,38571.0,38567.0,0.06482107]
[1643692898899,0.09866527,38571.0,38567.0,0.06482107]
[1643692899799,0.09713306,38571.0,38567.0,0.06482107]
[1643692899999,0.09866527,38571.0,38567.0,0.06482107]
[1643692901048,0.09713306,38571.0,38567.0,0.06482107]
[1643692901348,0.09866525,38571.0,38567.0,0.06482107]
[1643692902146,0.09713306,38571.0,38567.0,0.06482107]
[1643692902545,0.09866525,38571.0,38567.0,0.06482107]
[1643692903346,0.09713306,38571.0,38567.0,0.06482107]
[1643692903746,0.09866525,38571.0,38567.0,0.06482107]
[1643692904695,0.09713306,38571.0,38567.0,0.06482107]
[1643692904895,0.09866525,38571.0,38567.0,0.06482107]
[1643692905099,0.00153219,38571.0,38568.0,0.23315878]
[1643692905296,0.00153219,38571.0,38569.0,0.19137151]
[1643692905496,0.00153219,38571.0,38568.0,0.36279763]
[1643692905899,0.1,38576.0,38568.0,0.36279763]
[1643692906295,0.00153218,38572.0,38568.0,0.45384148]
[1643692906496,0.00153218,38572.0,38568.0,0.86449786]
[1643692906695,0.00153218,38572.0,38568.0,1.05623092]
[1643692906897,0.00153218,38572.0,38569.0,0.129628]
[1643692907097,0.002,38577.0,38569.0,0.28322032]
[1643692907296,0.00153218,38572.0,38571.0,0.05]
[1643692907595,0.00153218,38572.0,38570.0,0.28260617]
[1643692907897,0.00153218,38572.0,38571.0,0.05]
[1643692908261,0.002,38577.0,38575.0,0.2736963]
[1643692908549,0.002,38577.0,38575.0,0.46812573]
[1643692908748,0.02086132,38577.0,38575.0,0.46812573]
[1643692909550,0.002,38577.0,38575.0,0.46812573]
[1643692909850,0.42626814,38576.0,38575.0,0.46812573]
[1643692910050,0.07626814,38576.0,38575.0,0.4033163]
[1643692911051,0.07626814,38576.0,38575.0,0.2736963]
[1643692912199,0.07617766,38576.0,38575.0,0.2736963]
[1643692914999,0.00338783,38577.0,38575.0,0.2736963]
[1643692915400,0.002,38577.0,38575.0,0.2736963]
[1643692916455,0.098191,38577.0,38575.0,0.2736963]
[1643692917452,0.002,38577.0,38575.0,0.2736963]
[1643692920305,0.08166558,38576.0,38574.0,0.06481318]
[1643692920704,0.08166558,38576.0,38572.0,0.06481655]
[1643692920908,0.08166558,38576.0,38570.0,0.05]
[1643692921310,0.08166558,38576.0,38571.0,0.25047193]
[1643692921507,0.002,38577.0,38571.0,0.25047193]
[1643692921706,0.00140332,38575.0,38572.0,0.06481]
[1643692922205,0.00140332,38575.0,38572.0,0.06481692]
[1643692922606,0.27262721,38577.0,38560.0,0.08513416]
[1643692922607,0.07981769,38574.0,38560.0,0.08513416]
[1643692922807,0.13171769,38574.0,38560.0,0.26003012]
[1643692923008,0.13171769,38574.0,38564.0,0.617924]
[1643692923251,0.13171769,38574.0,38564.0,0.68275265]
[1643692923449,0.13171769,38574.0,38567.0,0.28631824]
[1643692923747,0.19654369,38574.0,38564.0,0.5531]
[1643692923950,0.10224263,38568.0,38564.0,0.5531]
[1643692924147,0.10224263,38568.0,38563.0,0.064826]
[1643692924547,0.10224263,38568.0,38559.0,0.1153]
[1643692924749,0.33475243,38568.0,38560.0,0.29808611]
[1643692925048,0.24988076,38567.0,38560.0,0.29808611]
[1643692925249,0.33475243,38568.0,38560.0,0.29808611]
[1643692925549,0.33475243,38568.0,38560.0,0.36291711]
[1643692926349,0.33475243,38568.0,38561.0,0.12965404]
[1643692926553,0.33475243,38568.0,38560.0,0.36291711]
[1643692926750,0.0014036,38571.0,38562.0,0.06483]
[1643692927001,0.0533036,38571.0,38560.0,0.29808611]
[1643692927200,0.0533036,38571.0,38560.0,0.2979968]
[1643692927401,0.02195993,38569.0,38560.0,0.2979968]
[1643692928003,0.31256541,38568.0,38560.0,0.2979968]
[1643692928403,0.31256541,38568.0,38560.0,0.3628314]
[1643692929209,0.20489725,38567.0,38560.0,0.3628314]
[1643692930608,0.08641524,38561.0,38560.0,0.2979968]
[1643692930846,0.08641524,38561.0,38560.0,0.6471268]
[1643692933848,0.25329384,38567.0,38561.0,0.0648335]
[1643692934906,0.27301894,38567.0,38561.0,0.0648335]
[1643692935206,0.25329384,38567.0,38561.0,0.0648335]
[1643692936209,0.09257017,38566.0,38561.0,0.0648335]
[1643692946953,0.42257017,38566.0,38561.0,0.0648335]
[1643692947357,0.42257017,38566.0,38559.0,0.12966266]
[1643692948557,0.42257017,38566.0,38560.0,0.06483418]
[1643692948757,0.44311234,38566.0,38560.0,0.06483418]
[1643692949605,0.42257017,38566.0,38560.0,0.06483418]
[1643692951208,0.42246797,38566.0,38560.0,0.06483418]
[1643692951410,0.44187669,38566.0,38560.0,0.06483418]
[1643692951608,0.42246797,38566.0,38560.0,0.06483418]
[1643692951909,0.42246797,38566.0,38562.0,0.38567184]
[1643692953257,0.42246797,38566.0,38562.0,0.45049784]
[1643692953951,0.33,38566.0,38562.0,0.45049784]
[1643692954551,0.33,38566.0,38563.0,0.19414697]
[1643692954951,0.33,38566.0,38563.0,0.32379597]
[1643692955552,0.33,38566.0,38565.0,0.08790193]
[1643692955752,0.33,38566.0,38565.0,0.65909644]
[1643692955951,0.33,38566.0,38565.0,0.72391744]
[1643692957803,0.33,38566.0,38565.0,0.77391744]
[1643692960104,0.33,38566.0,38565.0,0.68471551]
[1643692960308,0.33,38566.0,38565.0,0.61989451]
[1643692961550,0.33,38566.0,38565.0,0.68471551]
[1643692962753,0.33,38566.0,38565.0,0.63601551]
[1643692962955,0.33,38566.0,38565.0,0.413951]
[1643692963352,0.33,38566.0,38565.0,0.60445268]
[1643692968855,0.33,38566.0,38565.0,0.65445268]